bitfinex/quotes_SOLUSD_20240913
["timestamp","ask_amount","ask_price","bid_price","bid_amount"]
[1726260599688,0.2582008,138.51,138.47,12.55771077]
[1726260600409,0.2582008,138.51,138.46,12.55771077]
[1726260601661,0.2582008,138.51,138.45,12.55771077]
[1726260601864,0.2582008,138.51,138.46,20.0]
[1726260602391,0.2582008,138.51,138.39,16.176]
[1726260602687,24.0350848,138.51,138.39,16.176]
[1726260602885,0.25098,138.5,138.39,16.176]
[1726260603227,16.2641,138.49,138.42,12.55771077]
[1726260603484,16.2641,138.49,138.43,12.55771077]
[1726260603691,16.2641,138.49,138.39,16.176]
[1726260603894,16.2641,138.49,138.44,12.55771077]
[1726260610711,16.2641,138.49,138.43,12.55771077]
[1726260613007,16.2641,138.49,138.42,12.55771077]
[1726260615207,6.5636,138.48,138.42,20.0]
[1726260616105,6.5636,138.48,138.41,12.55771077]
[1726260622710,6.5636,138.48,138.42,12.55771077]
[1726260623019,6.5636,138.48,138.43,12.55771077]
[1726260623188,6.5636,138.48,138.42,12.55771077]
[1726260628314,6.5636,138.48,138.43,12.55771077]
[1726260629017,6.5636,138.48,138.44,12.55771077]
[1726260633614,6.5636,138.48,138.42,20.0]
[1726260633996,6.5636,138.48,138.42,32.55771077]
[1726260635920,6.5636,138.48,138.41,32.80869077]
[1726260641898,6.5636,138.48,138.41,32.55771077]
[1726260643236,6.5636,138.48,138.41,20.0]
[1726260643927,6.5636,138.48,138.4,7.49156878]
[1726260644531,6.5636,138.48,138.4,20.04927955]
[1726260645733,6.5636,138.48,138.41,12.55771077]
[1726260649016,6.5636,138.48,138.43,12.55771077]
[1726260650416,6.5636,138.48,138.41,12.55771077]
[1726260653136,6.5636,138.48,138.4,7.51698191]
[1726260653537,6.5636,138.48,138.41,12.55771077]
[1726260660638,6.5636,138.48,138.42,12.55771077]
[1726260662044,6.5636,138.48,138.41,12.55771077]
[1726260668255,6.5636,138.48,138.42,12.80869077]
[1726260668452,6.5636,138.48,138.43,12.55771077]
[1726260668658,6.5636,138.48,138.44,12.55771077]
[1726260672844,16.2641,138.49,138.44,12.55771077]
[1726260675135,16.2641,138.49,138.42,20.12549]
[1726260675442,16.2641,138.49,138.42,32.68320077]
[1726260677836,16.2641,138.49,138.42,20.12549]
[1726260678143,16.2641,138.49,138.43,12.55771077]
[1726260680850,16.2641,138.49,138.42,20.12549]
[1726260681051,16.2641,138.49,138.43,12.55771077]
[1726260681248,16.2641,138.49,138.44,24.027864]
[1726260681570,16.2641,138.49,138.45,12.55771077]
[1726260681953,16.2641,138.49,138.46,12.55771077]
[1726260683342,16.2641,138.49,138.45,12.55771077]
[1726260683549,16.2641,138.49,138.44,32.80869077]
[1726260684574,16.2641,138.49,138.44,20.0]
[1726260685065,16.2641,138.49,138.42,20.0]
[1726260685247,16.2641,138.49,138.44,20.0]
[1726260686740,16.2641,138.49,138.42,32.55771077]
[1726260686938,16.2641,138.49,138.42,20.0]
[1726260687372,16.2641,138.49,138.42,32.55771077]
[1726260694071,16.2641,138.49,138.43,12.55771077]
[1726260695269,16.2641,138.49,138.44,12.55771077]
[1726260695480,16.2641,138.49,138.45,12.55771077]
[1726260695648,16.2641,138.49,138.46,12.55771077]
[1726260697072,16.2641,138.49,138.45,12.55771077]
[1726260701782,0.2582008,138.51,138.45,12.55771077]
[1726260702262,0.2582008,138.51,138.46,0.12549]
[1726260702465,0.2582008,138.51,138.46,12.68320077]
[1726260703357,0.2582008,138.51,138.47,12.55771077]
[1726260703790,0.2582008,138.51,138.48,12.55771077]
[1726260703959,0.2582008,138.51,138.5,12.55771077]
[1726260705356,0.2582008,138.51,138.5,12.68320077]
[1726260706373,0.2582008,138.51,138.49,12.55771077]
[1726260706567,0.2582008,138.51,138.48,12.55771077]
[1726260706789,0.2582008,138.51,138.48,20.25098]
[1726260708663,0.2582008,138.51,138.48,12.80869077]
[1726260709072,0.2582008,138.51,138.49,20.0]
[1726260711580,0.2582008,138.51,138.49,32.55771077]
[1726260711783,0.2582008,138.51,138.5,12.55771077]
[1726260712163,0.2582008,138.51,138.5,12.68320077]
[1726260713882,0.2582008,138.51,138.5,0.12549]
[1726260714077,0.2582008,138.51,138.47,0.12549]
[1726260714278,0.2582008,138.51,138.49,12.55771077]
[1726260714761,0.2582008,138.51,138.47,23.902374]
[1726260714762,0.2582008,138.51,138.48,12.55771077]
[1726260714958,0.2582008,138.51,138.49,20.0]
[1726260715992,0.2582008,138.51,138.49,12.55771077]
[1726260719993,0.2582008,138.51,138.48,0.12549]
[1726260720300,0.2582008,138.51,138.49,12.55771077]
[1726260720795,0.2582008,138.51,138.5,12.55771077]
[1726260722599,0.2582008,138.51,138.49,12.55771077]
[1726260723801,0.2582008,138.51,138.48,12.80869077]
[1726260723975,0.2582008,138.51,138.49,20.0]
[1726260729407,0.2582008,138.51,138.49,12.55771077]
[1726260737117,0.2582008,138.51,138.49,20.0]
[1726260737797,0.2582008,138.51,138.48,12.55771077]
[1726260740014,0.2582008,138.51,138.48,20.0]
[1726260740219,0.2582008,138.51,138.48,32.55771077]
[1726260741105,0.2582008,138.51,138.48,20.0]
[1726260741505,0.2582008,138.51,138.48,32.55771077]
[1726260742619,0.2582008,138.51,138.49,12.55771077]
[1726260745313,0.2582008,138.51,138.48,20.0]
[1726260746022,0.2582008,138.51,138.48,32.55771077]
[1726260750421,0.2582008,138.51,138.48,20.0]
[1726260759715,0.2582008,138.51,138.48,32.55771077]
[1726260761733,0.2582008,138.51,138.48,20.0]
[1726260768426,0.2582008,138.51,138.49,12.55771077]
[1726260769833,0.2582008,138.51,138.5,12.55771077]
[1726260778720,0.2582008,138.51,138.5,32.68320077]
[1726260783448,0.2582008,138.51,138.5,34.12679472]
[1726260784850,0.2582008,138.51,138.5,32.68320077]
[1726260785047,0.2582008,138.51,138.5,34.12616933]
[1726260785555,0.2582008,138.51,138.5,32.68320077]
[1726260787325,0.2582008,138.51,138.5,32.55771077]
[1726260795958,0.2582008,138.51,138.49,20.0]
[1726260796266,0.2582008,138.51,138.5,32.55771077]
[1726260798069,0.2582008,138.51,138.5,20.0]
[1726260798266,0.2582008,138.51,138.5,32.55771077]
[1726260800073,0.2582008,138.51,138.49,20.0]
[1726260800265,0.2582008,138.51,138.5,32.55771077]
[1726260803073,0.2582008,138.51,138.49,20.0]
[1726260803375,0.2582008,138.51,138.5,12.55771077]
[1726260803677,0.2582008,138.51,138.5,32.55771077]
[1726260808178,0.2582008,138.51,138.5,12.55771077]
[1726260808479,0.2582008,138.51,138.5,32.55771077]
[1726260817668,0.2582008,138.51,138.5,20.0]
[1726260817871,0.2582008,138.51,138.5,32.55771077]
[1726260821984,0.2582008,138.51,138.5,32.93418077]
[1726260823765,0.2582008,138.51,138.5,56.71106477]
[1726260826184,0.2582008,138.55,138.54,44.027864]
[1726260826391,0.2582008,138.55,138.54,56.71106477]
[1726260836504,0.2582008,138.55,138.54,36.71106477]
[1726260836870,0.2582008,138.55,138.54,56.71106477]
[1726260840003,0.2582008,138.55,138.54,32.80869077]
[1726260841202,0.2582008,138.55,138.54,0.25098]
[1726260841395,0.2582008,138.55,138.54,32.80869077]
[1726260841974,0.2582008,138.55,138.54,20.0]
[1726260851299,0.2582008,138.55,138.54,12.55771077]
[1726260851496,0.2582008,138.55,138.54,32.55771077]
[1726260862345,0.2582008,138.55,138.54,32.80869077]
[1726260862518,0.2582008,138.55,138.54,56.71106477]
[1726260883336,0.2582008,138.59,138.55,44.027864]
[1726260883543,0.2582008,138.59,138.58,12.55771077]
[1726260891255,0.2582008,138.59,138.58,32.55771077]
[1726260893261,0.2582008,138.59,138.58,56.58557477]
[1726260893556,0.2582008,138.59,138.58,56.71106477]
[1726260893761,0.2582008,138.59,138.58,58.02279187]
[1726260896464,0.2582008,138.63,138.58,58.02279187]
[1726260896465,0.2582008,138.63,138.59,44.027864]
[1726260896763,0.2582008,138.63,138.62,12.68320077]
[1726260900645,0.2582008,138.63,138.62,56.71106477]
[1726260900843,0.2582008,138.63,138.62,44.153354]
[1726260901150,0.2582008,138.63,138.62,56.71106477]
[1726260902473,0.2582008,138.63,138.6,20.0]
[1726260902653,0.2582008,138.63,138.6,32.55771077]
[1726260903669,0.2582008,138.63,138.61,0.12549]
[1726260903853,0.2582008,138.63,138.62,12.55771077]
[1726260904176,0.2582008,138.63,138.62,32.55771077]
[1726260906972,0.2582008,138.63,138.58,8.72876687]
[1726260907190,0.2582008,138.63,138.58,12.55771077]
[1726260908581,0.2582008,138.63,138.6,12.55771077]
[1726260908747,0.2582008,138.63,138.61,12.55771077]
[1726260908952,0.2582008,138.63,138.58,20.0]
[1726260908953,0.2582008,138.63,138.62,12.55771077]
[1726260909548,0.2582008,138.63,138.62,12.80869077]
[1726260909754,0.2582008,138.63,138.62,32.80869077]
[1726260910582,0.2582008,138.63,138.62,56.58557477]
[1726260910872,0.2582008,138.63,138.62,56.71106477]
[1726260911078,15.1703,138.71,138.62,56.71106477]
[1726260911079,15.1703,138.71,138.63,44.027864]
[1726260911253,15.1703,138.71,138.66,12.55771077]
[1726260911460,15.1703,138.71,138.66,32.55771077]
[1726260912483,15.1703,138.71,138.66,32.80869077]
[1726260914002,6.3038008,138.72,138.66,56.71106477]
[1726260915092,0.2582008,138.72,138.66,56.71106477]
[1726260918005,0.2582008,138.72,138.67,44.027864]
[1726260918199,0.2582008,138.72,138.71,12.55771077]
[1726260918404,0.2582008,138.72,138.7,12.55771077]
[1726260919106,0.264395,138.72,138.7,12.55771077]
[1726260920299,0.264395,138.72,138.71,14.11766627]
[1726260920506,0.264395,138.72,138.71,12.68320077]
[1726260921207,0.264395,138.72,138.71,36.58557477]
[1726260921506,0.264395,138.72,138.71,56.71106477]
[1726260924788,0.264395,138.72,138.71,32.93418077]
[1726260924991,0.264395,138.72,138.71,32.80869077]
[1726260926420,0.264395,138.72,138.71,32.55771077]
[1726260926829,0.264395,138.72,138.7,12.55771077]
[1726260926994,0.264395,138.72,138.71,20.0]
[1726260927390,0.264395,138.72,138.69,12.68320077]
[1726260927391,0.264395,138.72,138.7,20.0]
[1726260928128,0.264395,138.72,138.7,32.55771077]
[1726260928292,0.264395,138.72,138.7,12.55771077]
[1726260928492,0.264395,138.72,138.66,8.72876687]
[1726260928493,0.264395,138.72,138.69,12.55771077]
[1726260928921,0.264395,138.72,138.7,20.0]
[1726260929125,0.264395,138.72,138.7,32.55771077]
[1726260929304,0.264395,138.72,138.7,20.0]
[1726260929500,0.264395,138.72,138.68,0.12549]
[1726260929735,0.264395,138.72,138.67,0.25098]
[1726260929920,0.264395,138.72,138.69,20.0]
[1726260930313,0.264395,138.72,138.69,12.55771077]
[1726260931008,0.264395,138.72,138.7,12.55771077]
[1726260931210,0.264395,138.72,138.71,12.55771077]
[1726260932529,0.264395,138.72,138.7,12.55771077]
[1726260933315,0.264395,138.72,138.68,20.25098]
[1726260933628,0.264395,138.72,138.68,12.80869077]
[1726260934002,0.264395,138.72,138.69,20.0]
[1726260936310,0.264395,138.72,138.69,12.55771077]
[1726260940636,0.264395,138.72,138.68,0.25098]
[1726260941011,0.264395,138.72,138.68,20.25098]
[1726260941430,0.264395,138.72,138.65,7.50417266]
[1726260941808,16.3445,138.71,138.65,7.50417266]
[1726260942638,16.3445,138.71,138.66,12.55771077]
[1726260942922,0.264395,138.72,138.67,12.55771077]
[1726260943129,0.264395,138.72,138.66,44.027864]
[1726260943311,0.264395,138.72,138.66,24.027864]
[1726260943631,0.264395,138.72,138.68,12.55771077]
[1726260947040,0.264395,138.72,138.67,20.0]
[1726260947334,0.264395,138.72,138.66,32.68320077]
[1726260948016,0.264395,138.72,138.67,0.12549]
[1726260954126,0.264395,138.72,138.66,27.50492266]
[1726260954443,16.4508,138.7,138.61,13.80977617]
[1726260954649,16.4508,138.7,138.61,12.55771077]
[1726260954942,16.4508,138.7,138.63,7.50715221]
[1726260955932,16.4508,138.7,138.64,20.0]
[1726260959831,16.4508,138.7,138.63,7.50715221]
[1726260963264,16.4508,138.7,138.61,44.027864]
[1726260963430,16.4508,138.7,138.61,51.53613008]
[1726260964552,16.4508,138.7,138.61,27.75924608]
[1726260965261,16.4508,138.7,138.61,27.63375608]
[1726260965476,23.776884,138.69,138.61,27.63375608]
[1726260965775,23.776884,138.69,138.61,27.50826608]
[1726260965993,23.776884,138.69,138.61,7.50826608]
[1726260965994,22.23288,138.68,138.61,7.50826608]
[1726260966158,15.7768,138.66,138.56,0.2852536]
[1726260966482,15.7768,138.66,138.57,7.51007937]
[1726260967485,15.7768,138.66,138.58,20.0]
[1726260967966,15.7768,138.66,138.58,32.55771077]
[1726260968169,15.7768,138.66,138.59,0.25098]
[1726260970280,15.7768,138.66,138.57,20.06779014]
[1726260970577,15.7768,138.66,138.58,20.12549]
[1726260971497,15.7768,138.66,138.58,20.0]
[1726260973265,6.0589,138.65,138.58,20.0]
[1726260976688,6.0589,138.65,138.57,20.12549]
[1726260976877,6.0589,138.65,138.57,27.63716931]
[1726260977202,6.0589,138.65,138.58,36.58557477]
[1726260977388,6.0589,138.65,138.59,12.55771077]
[1726260977585,15.7768,138.66,138.6,12.55771077]
[1726260977786,15.7768,138.66,138.61,12.55771077]
[1726260980306,6.3849,138.68,138.62,44.027864]
[1726260980483,16.3285,138.7,138.62,44.153354]
[1726260980677,16.3285,138.7,138.64,12.55771077]
[1726260986614,16.3285,138.7,138.62,56.58557477]
[1726260990217,16.3285,138.7,138.61,20.0]
[1726260994701,15.7502,138.68,138.61,20.0]
[1726260995024,15.7502,138.68,138.6,20.12549]
[1726260995326,15.7502,138.68,138.6,20.0]
[1726260996911,15.7502,138.68,138.6,32.55771077]
[1726260997718,15.7502,138.68,138.61,12.55771077]
[1726261011945,15.7502,138.68,138.61,20.0]
[1726261013438,30.138564,138.67,138.6,7.52695001]
[1726261013640,15.4962,138.66,138.57,24.0452648]
[1726261013845,15.4962,138.66,138.58,7.52894892]
[1726261014547,15.4962,138.66,138.58,20.08665969]
[1726261014755,15.4962,138.66,138.59,20.0]
[1726261020432,15.4962,138.66,138.59,32.55771077]
[1726261022529,15.4962,138.66,138.59,20.0]
[1726261026354,15.4962,138.66,138.58,7.52894892]
[1726261026355,23.776884,138.65,138.58,7.52894892]
[1726261026553,15.5639,138.63,138.57,0.2683808]
[1726261027933,15.5639,138.63,138.57,20.2683808]
[1726261028354,15.5639,138.63,138.57,0.2683808]
[1726261036254,15.5639,138.63,138.58,12.55771077]
[1726261036562,15.5639,138.63,138.59,12.55771077]
[1726261036943,15.5639,138.63,138.6,12.55771077]
[1726261037261,15.0436,138.67,138.62,12.55771077]
[1726261038258,15.0436,138.67,138.65,12.55771077]
[1726261038461,15.0436,138.67,138.64,12.55771077]
[1726261038629,15.0436,138.67,138.58,16.67278]
[1726261038630,15.0436,138.67,138.63,12.55771077]
[1726261039267,15.0436,138.67,138.62,12.55771077]
[1726261040936,15.0436,138.67,138.63,12.55771077]
[1726261043766,15.7871168,138.71,138.65,12.55771077]
[1726261043941,15.7871168,138.71,138.66,12.55771077]
[1726261044141,21.69,138.69,138.57,16.52710361]
[1726261044363,6.0278,138.66,138.57,0.2683808]
[1726261044656,15.59900428,138.66,138.57,0.2683808]
[1726261045243,23.902374,138.65,138.57,0.2683808]
[1726261045650,33.47357828,138.65,138.57,0.2683808]
[1726261054570,15.9782,138.64,138.57,0.2683808]
[1726261056861,24.027864,138.63,138.57,0.2683808]
[1726261058460,6.0033,138.62,138.57,0.2683808]
[1726261081566,15.9782,138.64,138.57,12.88183226]
[1726261084393,15.9782,138.64,138.57,0.2683808]
[1726261114619,15.9782,138.64,138.57,12.88183226]
[1726261116618,2.92763865,138.68,138.58,44.027864]
[1726261116619,23.0395,138.68,138.58,44.027864]
[1726261116824,23.0395,138.68,138.62,12.61345146]
[1726261122722,23.0395,138.68,138.61,12.73894146]
[1726261124123,23.0395,138.68,138.6,12.61345146]
[1726261124427,23.0395,138.68,138.6,20.0]
[1726261126128,23.0395,138.68,138.59,12.61345146]
[1726261126129,23.776884,138.67,138.59,12.61345146]
[1726261126426,23.776884,138.67,138.57,20.41760861]
[1726261127003,23.776884,138.67,138.57,7.80415715]
[1726261127324,23.776884,138.64,138.57,7.80415715]
[1726261128405,23.776884,138.64,138.57,0.2683808]
[1726261129423,0.12549,138.63,138.57,0.2683808]
[1726261129626,23.776884,138.62,138.57,0.2683808]
[1726261136254,15.49319,138.63,138.57,0.2683808]
[1726261136440,15.3677,138.63,138.57,0.2683808]
[1726261139934,15.3677,138.63,138.57,12.88183226]
[1726261140137,15.3677,138.63,138.58,12.61345146]
[1726261140350,15.3677,138.63,138.57,12.88183226]
[1726261142122,15.3677,138.63,138.57,0.2683808]
[1726261143642,23.776884,138.62,138.57,0.2683808]
[1726261149658,15.3677,138.63,138.57,0.2683808]
[1726261157342,23.776884,138.62,138.57,0.2683808]
[1726261169060,0.12549,138.61,138.57,0.2683808]
[1726261169269,0.25098,138.61,138.57,0.2683808]
[1726261173759,0.12549,138.6,138.57,0.2683808]
[1726261173971,0.12549,138.59,138.57,0.2683808]
[1726261174171,0.25098,138.59,138.57,0.2683808]
[1726261179185,24.027864,138.59,138.57,0.2683808]
[1726261179475,0.25098,138.59,138.57,0.2683808]
[1726261181463,0.12549,138.58,138.57,0.2683808]
[1726261181677,0.37647,138.58,138.57,0.2683808]
[1726261183183,0.37647,138.58,138.53,0.2547488]
[1726261183184,0.12549,138.57,138.53,0.2547488]
[1726261183386,23.902374,138.56,138.53,0.2547488]
[1726261183678,0.25098,138.55,138.53,0.2547488]
[1726261183856,0.25098,138.54,138.53,0.2547488]
[1726261184055,0.37647,138.54,138.53,0.2547488]
[1726261184362,0.37647,138.54,138.49,0.2547488]
[1726261184676,0.25098,138.53,138.49,0.2547488]
[1726261190588,0.12549,138.52,138.49,0.2547488]
[1726261190769,0.25098,138.52,138.49,0.2547488]
[1726261191468,0.25098,138.51,138.49,0.2547488]
[1726261194096,0.12549,138.51,138.49,0.2547488]
[1726261194262,23.902374,138.52,138.49,0.2547488]
[1726261194461,0.25098,138.51,138.49,0.2547488]
[1726261197372,0.12549,138.5,138.49,0.2547488]
[1726261197578,0.25098,138.5,138.49,0.2547488]
[1726261197780,24.153354,138.5,138.49,0.2547488]
[1726261198979,23.776884,138.5,138.49,0.2547488]
[1726261200992,24.027864,138.5,138.49,0.2547488]
[1726261201214,24.153354,138.5,138.49,0.2547488]
[1726261201987,2.95799055,138.53,138.49,0.2547488]
[1726261202189,29.90894316,138.55,138.49,0.2547488]
[1726261202375,9.3678728,138.54,138.49,0.2547488]
[1726261203279,24.027864,138.53,138.49,0.2547488]
[1726261203480,0.25098,138.52,138.49,0.2547488]
[1726261204893,0.12549,138.51,138.49,0.2547488]
[1726261205204,0.25098,138.51,138.49,0.2547488]
[1726261207583,0.12549,138.5,138.49,0.2547488]
[1726261208116,23.776884,138.51,138.49,0.2547488]
[1726261210086,24.95848907,138.59,138.49,0.2547488]
[1726261210299,9.3678728,138.58,138.49,0.2547488]
[1726261211403,9.3678728,138.58,138.5,16.4884]
[1726261211602,2.96969577,138.6,138.5,16.4884]
[1726261211813,39.5723178,138.63,138.51,19.24295146]
[1726261212010,32.3585178,138.63,138.51,19.24295146]
[1726261212309,16.22282032,138.63,138.52,16.4884]
[1726261212483,16.22282032,138.63,138.52,29.10185146]
[1726261212684,16.22282032,138.63,138.53,12.61345146]
[1726261212887,9.18249938,138.63,138.53,12.61345146]
[1726261213309,9.18249938,138.63,138.54,12.61345146]
[1726261214088,9.18249938,138.63,138.55,12.61345146]
[1726261215296,0.2547488,138.63,138.55,12.61345146]
[1726261217598,0.2547488,138.63,138.54,12.61345146]
[1726261217899,0.2547488,138.63,138.56,35.73135146]
[1726261218214,0.2547488,138.63,138.59,12.61345146]
[1726261220306,0.2547488,138.63,138.58,12.61345146]
[1726261221397,0.2547488,138.63,138.56,23.1179]
[1726261222720,0.2547488,138.63,138.56,35.73135146]
[1726261226118,0.2547488,138.63,138.56,23.1179]
[1726261226694,0.2547488,138.63,138.56,35.73135146]
[1726261226892,0.2547488,138.63,138.57,12.86443146]
[1726261231928,0.2547488,138.63,138.59,12.61345146]
[1726261232235,0.2547488,138.63,138.6,12.61345146]
[1726261234103,0.2547488,138.63,138.59,12.61345146]
[1726261237205,0.2547488,138.63,138.6,12.61345146]
[1726261239625,0.2547488,138.63,138.57,0.25098]
[1726261239626,0.2547488,138.63,138.57,20.25098]
[1726261239810,0.2547488,138.63,138.58,12.61345146]
[1726261241134,0.2547488,138.63,138.57,20.25098]
[1726261241316,0.2547488,138.63,138.57,32.86443146]
[1726261243318,0.2547488,138.63,138.58,12.61345146]
[1726261247626,0.2547488,138.63,138.59,12.61345146]
[1726261247935,0.2547488,138.63,138.58,12.61345146]
[1726261250723,0.2547488,138.67,138.58,12.61345146]
[1726261250724,0.0094976,138.67,138.58,12.61345146]
[1726261250928,0.2604776,138.67,138.59,12.61345146]
[1726261253644,0.2604776,138.67,138.58,12.61345146]
[1726261255930,0.1349876,138.67,138.59,12.61345146]
[1726261256145,0.0094976,138.67,138.6,0.25098]
[1726261256446,0.0094976,138.67,138.6,12.86443146]
[1726261256650,0.0094976,138.67,138.59,12.61345146]
[1726261268531,0.0094976,138.67,138.56,23.1179]
[1726261268532,24.027864,138.65,138.56,23.1179]
[1726261268734,24.027864,138.65,138.56,16.4884]
[1726261268932,0.12549,138.64,138.55,12.61345146]
[1726261269648,0.12549,138.64,138.54,12.61345146]
[1726261269840,0.12549,138.64,138.55,20.12549]
[1726261275157,23.776884,138.63,138.55,20.12549]
[1726261275551,23.776884,138.63,138.55,20.3707412]
[1726261279067,23.776884,138.63,138.55,0.2452512]
[1726261279266,16.1684,138.62,138.55,0.2452512]
[1726261280140,23.776884,138.61,138.55,0.2452512]
[1726261284885,0.25098,138.6,138.55,0.2452512]
[1726261298195,0.12549,138.59,138.55,0.2452512]
[1726261298693,23.902374,138.59,138.55,0.2452512]
[1726261302172,26.81267457,138.59,138.55,0.2452512]
[1726261303373,16.01639,138.58,138.55,0.2452512]
[1726261303693,23.902374,138.57,138.55,0.2452512]
[1726261306468,22.3779,138.58,138.55,0.2452512]
[1726261306672,15.8909,138.58,138.55,0.2452512]
[1726261306895,29.592,138.62,138.55,0.2452512]
[1726261307101,39.53640764,138.62,138.55,0.2452512]
[1726261307399,32.32230764,138.62,138.55,0.2452512]
[1726261308586,0.12549,138.6,138.55,0.2452512]
[1726261308791,0.25098,138.6,138.55,0.2452512]
[1726261317395,0.12549,138.59,138.55,0.2452512]
[1726261317600,0.25098,138.59,138.55,0.2452512]
[1726261322189,24.027864,138.58,138.55,0.2452512]
[1726261322406,0.25098,138.57,138.55,0.2452512]
[1726261326810,0.25098,138.56,138.53,0.2547488]
[1726261327012,0.25098,138.54,138.53,0.2547488]
[1726261327188,24.153354,138.54,138.53,0.2547488]
[1726261332530,24.153354,138.54,138.49,15.5148488]
[1726261332827,24.027864,138.53,138.49,15.5148488]
[1726261333231,0.25098,138.53,138.49,15.5148488]
[1726261334229,0.12549,138.53,138.49,15.5148488]
[1726261334431,0.12549,138.54,138.49,15.5148488]
[1726261334606,0.25098,138.54,138.49,15.5148488]
[1726261335330,23.776884,138.55,138.49,15.5148488]
[1726261335926,0.25098,138.54,138.49,15.5148488]
[1726261337425,0.12549,138.53,138.49,0.2547488]
[1726261337727,24.027864,138.53,138.49,0.2547488]
[1726261337930,0.12549,138.52,138.49,0.2547488]
[1726261343006,7.34469,138.52,138.49,0.2547488]
[1726261343207,24.027864,138.51,138.49,0.2547488]
[1726261343407,0.12549,138.5,138.49,0.2547488]
[1726261346037,9.89650938,138.54,138.49,0.2547488]
[1726261347433,7.04032094,138.54,138.49,0.2547488]
[1726261349033,23.776884,138.53,138.49,0.2547488]
[1726261349735,7.04032094,138.54,138.49,0.2547488]
[1726261350231,14.25682094,138.57,138.49,0.2547488]
[1726261350419,23.1804715,138.57,138.49,0.2547488]
[1726261350926,15.9639715,138.57,138.49,0.2547488]
[1726261351319,24.027864,138.56,138.49,0.2547488]
[1726261358042,0.12549,138.55,138.49,0.2547488]
[1726261358449,24.027864,138.56,138.49,0.2547488]
[1726261360538,23.902374,138.56,138.49,0.2547488]
[1726261360826,23.776884,138.56,138.49,12.86820026]
[1726261361239,7.04032094,138.57,138.49,12.86820026]
[1726261361553,7.04032094,138.57,138.49,0.2547488]
[1726261361853,23.776884,138.56,138.49,0.2547488]
[1726261363527,20.0,138.55,138.49,0.2547488]
[1726261365327,23.776884,138.54,138.49,0.2547488]
[1726261365527,23.776884,138.52,138.49,0.2547488]
[1726261365728,20.0,138.51,138.49,0.2547488]
[1726261370637,20.0,138.52,138.49,0.2547488]
[1726261375137,7.34269,138.56,138.49,0.2547488]
[1726261375138,20.0,138.53,138.49,0.2547488]
[1726261379864,20.25098,138.56,138.49,0.2547488]
[1726261380038,20.12549,138.56,138.49,0.2547488]
[1726261380357,20.0,138.56,138.49,12.86820026]
[1726261382651,20.0,138.56,138.5,21.3022]
[1726261384345,7.04032094,138.57,138.5,33.91565146]
[1726261384542,8.92365056,138.6,138.52,15.0872]
[1726261384741,7.04032094,138.61,138.52,15.0872]
[1726261385435,7.04032094,138.61,138.53,6.215]
[1726261385838,24.027864,138.6,138.53,6.215]
[1726261386055,20.0,138.59,138.53,6.215]
[1726261399678,20.0,138.59,138.53,18.82845146]
[1726261401673,20.0,138.6,138.53,18.82845146]
[1726261402874,20.0,138.62,138.54,28.70645146]
[1726261403077,0.2547488,138.63,138.57,16.093]
[1726261404580,24.0316328,138.63,138.57,16.093]
[1726261405083,20.0,138.62,138.57,16.093]
[1726261405649,20.0,138.62,138.57,17.52936499]
[1726261405847,0.2547488,138.63,138.57,28.70645146]
[1726261406489,0.2547488,138.63,138.58,12.61345146]
[1726261407358,0.2547488,138.63,138.57,28.70645146]
[1726261407671,0.2547488,138.63,138.57,16.093]
[1726261408170,20.2547488,138.63,138.57,16.093]
[1726261412485,20.2547488,138.63,138.57,28.70645146]
[1726261413961,20.2547488,138.63,138.57,16.093]
[1726261419396,20.0,138.61,138.57,16.093]
[1726261419694,23.776884,138.6,138.57,16.093]
[1726261420766,20.0,138.61,138.57,16.093]
[1726261421080,24.153354,138.62,138.57,16.093]
[1726261421480,20.0,138.61,138.57,16.093]
[1726261426177,23.776884,138.6,138.57,16.093]
[1726261428112,20.0,138.59,138.57,16.093]
[1726261429407,20.0,138.59,138.54,15.9611]
[1726261429912,20.0,138.57,138.54,15.9611]
[1726261430292,23.776884,138.56,138.52,6.5172]
[1726261430603,20.0,138.55,138.52,6.5172]
[1726261430809,20.0,138.55,138.51,15.9611]
[1726261436813,41.69,138.55,138.51,15.9611]
[1726261436996,20.0,138.55,138.51,15.9611]
[1726261440102,23.776884,138.54,138.51,15.9611]
[1726261440994,23.776884,138.54,138.49,0.2547488]